Cogmind - Beta 13 @@@ ROGUE MODE // 2024.04.10 @ 18:10:20 Player: Cherman0 Result: Destroyed self with Grenade Launcher Performance ------------- Evolutions (0) 0 Regions Visited (2) 400 Robots Destroyed (30) 150 Value Destroyed (507) 507 Prototype IDs (0) 0 Alien Tech Used (0) 0 Bonus (0) 0 TOTAL SCORE: 1057 Bonus ------- None Cogmind --------- Core Integrity 0/250 Matter 220/300 Energy 250/250 System Corruption 0% Temperature Cool (0) Movement Rolling (110) Ox2 Location -10/Mines Parts ------- > --- POWER (1) -------- Ion Engine > --- PROPULSION (2) --- Wheel > --- UTILITY (2) ------ Large Storage Unit > --- WEAPON (2) ------- Grenade Launcher > --- INVENTORY (15) --- Large Battery (200) High-capacity Matter Pod (98) Machine Analyzer Light Armor Plating Light Armor Plating Light Armor Plating Hacking Suite Particle Gun Grenade Launcher Grenade Launcher Peak State ------------ > --- POWER ------------ Ion Engine > --- PROPULSION ------- Light Treads Light Treads > --- UTILITY ---------- Large Storage Unit Light Armor Plating > --- WEAPON ----------- Light Cannon Light Cannon > --- INVENTORY -------- Ion Engine Wheel Large Battery High-capacity Matter Pod Light Armor Plating Light Armor Plating Light Armor Plating Light Armor Plating Hacking Suite Recalibrator Grenade Launcher Grenade Launcher Grenade Launcher Grenade Launcher Grenade Launcher [Rating: 9] Favorites ----------- Power Ion Engine Engine Ion Engine Propulsion Light Treads Treads Light Treads Wheel Wheel Utility Large Storage Unit Device Sensor Array Storage Large Storage Unit Protection Light Armor Plating Weapon Light Cannon Ballistic Gun Assault Rifle Ballistic Cannon Light Cannon Launcher Grenade Launcher Special Weapon Mining Laser Build | -11 -10 -10 ------- Run | Yrd Mat Min Slots Evolved . | . . . Power . | . . . Propulsion . | . . . Utility . | . . . Weapon . | . . . Parts Attached 27 | 7 13 7 Power 3 | 1 1 1 Engine 3 | 1 1 1 Core . | . . . Reactor . | . . . Propulsion 5 | 2 1 2 Treads 3 | 2 1 . Leg . | . . . Wheel 2 | . . 2 Hover . | . . . Flight . | . . . Utility 6 | 2 3 1 Device 2 | 1 1 . Storage 2 | 1 1 . Processor . | . . . Hackware . | . . . Protection 2 | . 1 1 Artifact . | . . . Weapon 13 | 2 8 3 Energy Gun . | . . . Energy Cannon . | . . . Ballistic Gun 3 | 2 1 . Ballistic Cannon 4 | . 4 . Launcher 5 | . 2 3 Special Weapon 1 | . 1 . Impact Weapon . | . . . Slashing Weapon . | . . . Piercing Weapon . | . . . Special Melee Weapon . | . . . Unidentified Prototypes . | . . . Parts Lost 10 | . 1 9 Power 1 | . . 1 Propulsion 3 | . . 3 Utility 2 | . 1 1 Weapon 4 | . . 4 Highest Loss Streak 4 | . 1 4 To Critical Strikes . | . . . Average Slot Usage (%) 94 | . 98 84 Engine 14 | . 14 14 Treads 22 | . 27 8 Wheel 2 | . . 9 Device 3 | . 4 . Storage 14 | . 14 14 Protection 8 | . 8 9 Ballistic Gun 3 | . 5 . Ballistic Cannon 18 | . 21 9 Launcher 5 | . . 18 Naked Turns . | . . . Heaviest Build 34 | 15 34 34 Greatest Support 40 | 40 40 40 Greatest Overweight (x) 3 | 1 . 3 Average Overweight (x) . | . . 2 Largest Inventory Capacity 15 | 8 15 15 Average Capacity 14 | 7 14 15 Most Carried 15 | 4 15 15 Average Carried 12 | 2 12 12 Final Capacity 15 | 8 15 15 Final Carried 15 | 3 15 10 Class Distribution -------------------- 100% | Mutant Dominant Class ---------------- Mutant | -10/Materials Mutant | -10/Mines Resources | -11 -10 -10 ----------- Run | Yrd Mat Min Matter Collected 1009 | 242 467 300 Remotely . | . . . Salvage Created 563 | 50 268 245 Parts 55 | 9 27 19 Haulers Intercepted . | . . . Recyclers Shooed . | . . . Parts Field Recycled . | . . . Retrieved Matter . | . . . Parts Self-Destructed . | . . . Prevented . | . . . Kills | -11 -10 -10 ------- Run | Yrd Mat Min Combat Hostiles Destroyed 34 | . 12 22 Cannons 15 | . 12 3 AOE 19 | . . 19 Classes Destroyed 10 | 1 5 4 Worker 1 | . 1 . Builder 1 | . . 1 Tunneler 3 | 2 . 1 Recycler 2 | . . 2 Mechanic 1 | . 1 . Watcher 3 | . 3 . Swarmer 12 | . 6 6 Grunt 6 | . 6 . Demolisher 1 | . . 1 Assembled 15 | . . 15 Best Kill Streak 6 | 2 5 6 Combat Bots Only 5 | . 3 5 Max Kills in Single Turn 4 | 2 1 4 Gunslinging . | . . . Exploded 3 | . . 3 Melee . | . . . Uniques/NPCs Destroyed . | . . . Combat | -11 -10 -10 -------- Run | Yrd Mat Min Hostile Shots Fired 127 | . 78 49 Missed 25 | . 12 13 Damage Taken 1584 | . 579 1005 Core 266 | . 68 198 Absorbed by Shields . | . . . Regen/Repaired (Parts) 98 | . 98 . Core Remaining (%) 100 | 100 . . Volleys Fired 64 | 1 39 24 Largest 2 | 2 2 2 Hottest 100 | 40 100 70 Shots Fired 114 | 2 75 37 Gun 12 | 2 10 . Cannon 72 | . 60 12 Launcher 27 | . 2 25 Special 3 | . 3 . Kinetic 84 | 2 70 12 Thermal 3 | . 3 . Explosive 27 | . 2 25 Electromagnetic . | . . . Robot Hit Streak 11 | 1 10 11 Robot Miss Streak 4 | . 4 2 Penetration Max . | . . . Secondary Targets . | . . . Shots Hit Robots 59 | 1 39 19 Core Hits 62 | 2 19 41 Critical Kills . | . . . Critical Parts Destroyed . | . . . Critical Strikes 5 | . 5 . Blast 5 | . 5 . Melee Attacks . | . . . Impact . | . . . Slashing . | . . . Piercing . | . . . Sneak Attacks . | . . . Combat Hostiles . | . . . Follow-up Attacks . | . . . Damage Inflicted 1972 | 21 697 1254 Guns 78 | 21 57 . Cannons 769 | . 631 138 Explosions 1095 | . . 1095 Melee . | . . . Ramming 30 | . 9 21 Kinetic 847 | 21 688 138 Thermal 75 | . . 75 Explosive 1020 | . . 1020 Electromagnetic . | . . . Impact . | . . . Slashing . | . . . Piercing . | . . . Highest Corruption . | . . . Average Corruption . | . . . Corruption Purged . | . . . Corruption Blocked . | . . . Overload Shots . | . . . Overflow Damage 50 | . . 50 Projectiles 14 | . . 14 Explosions 36 | . . 36 Melee . | . . . Knockbacks 8 | . 7 1 Impact . | . . . Kinetic 8 | . 7 1 Secondary . | . . . Self-Inflicted Damage 306 | . 13 293 Shots 11 | . 1 10 Rammed 8 | . 3 5 Targets Rammed 8 | . 3 5 Kicked . | . . . Crushed . | . . . Highest Temperature 129 | . 129 21 Average Temperature 29 | . 36 7 Received Heat Transfer 78 | . 78 . Siege Activations . | . . . Robots Corrupted . | . . . Combat Hostiles . | . . . Parts Fried . | . . . Impact Corruptions . | . . . Robots Melted . | . . . Combat Hostiles . | . . . Parts Melted . | . . . Heat Transferred 100 | . . 100 Parts Sabotaged . | . . . Parts Stolen . | . . . Parts Stripped . | . . . Power Chain Reactions . | . . . Alert | -11 -10 -10 ------- Run | Yrd Mat Min Peak Influence 217 | 10 210 217 Initial 81 | . 6 81 Average 65 | 3 53 104 Maximum Alert Level 1 | . 1 1 Low Security (%) 95 | 100 97 91 Level 1 4 | . 2 8 Level 2 . | . . . Level 3 . | . . . Level 4 . | . . . Level 5 . | . . . High Security . | . . . Max Security . | . . . Squads Dispatched 3 | . 3 . Investigation 3 | . 3 . Extermination . | . . . Reinforcement . | . . . Assault . | . . . Garrison . | . . . Intercept . | . . . Searches Triggered . | . . . Construction Impeded . | . . . Haulers Reinforced . | . . . Active Scanning Responses . | . . . Cargo Convoy Interrupts . | . . . Stealth | -11 -10 -10 --------- Run | Yrd Mat Min Distress Signals . | . . . Communications Jammed . | . . . Distress Signals . | . . . Times Spotted 41 | . 20 21 Peak Tracking Total 4 | . 3 4 Tactical Retreats 2 | . 2 . Traps | -11 -10 -10 ------- Run | Yrd Mat Min Traps Triggered 2 | . 2 . Indirectly . | . . . Trap Hack Attempts . | . . . Triggered . | . . . Disarmed . | . . . Reprogrammed . | . . . Reused . | . . . Traps Extracted . | . . . Installed . | . . . Triggered . | . . . Machines | -11 -10 -10 ---------- Run | Yrd Mat Min Machines Disabled 3 | . 1 2 Max in Single Turn 2 | . 1 2 Machines Repaired . | . . . Machines Dismantled . | . . . Machines Sabotaged . | . . . Overloaded Fab Kills . | . . . Hacking | -11 -10 -10 --------- Run | Yrd Mat Min Machines Accessed 10 | . 10 . Terminals 7 | . 7 . Fabricators . | . . . Repair Stations 1 | . 1 . Recycling Units 2 | . 2 . Scanalyzers . | . . . Garrison Access . | . . . Total Hacks 28 | . 28 . Successful 17 | . 17 . Failed 10 | . 10 . Catastrophic . | . . . Database Lockouts 1 | . 1 . Manual 27 | . 27 . Terminals 18 | . 18 . Fabricators . | . . . Repair Stations 4 | . 4 . Recycling Units 6 | . 6 . Scanalyzers . | . . . Garrison Access . | . . . Terminal Hacks 3 | . 3 . Robot Analysis 1 | . 1 . Branch Access Points 1 | . 1 . Terminal Index 1 | . 1 . Fabricator Hacks . | . . . Repair Station Hacks 2 | . 2 . Scan Component 1 | . 1 . Repair 1 | . 1 . Recycling Unit Hacks . | . . . Scanalyzer . | . . . Garrison Access Hacks . | . . . Unauthorized Hacks 12 | . 12 . Terminals 7 | . 7 . Assimilate 1 | . 1 . Botnet 6 | . 6 . Fabricators . | . . . Repair Stations . | . . . Recycling Units 5 | . 5 . Reject 2 | . 2 . Recyclers 2 | . 2 . Mask 1 | . 1 . Scanalyzers . | . . . Garrison Access . | . . . Data Cores Recovered . | . . . Used . | . . . Hacking Detections 11 | . 11 . Full Trace Events 1 | . 1 . Feedback Events . | . . . Feedback Blocked . | . . . Robot Schematics Acquired . | . . . Robots Built . | . . . Authchips . | . . . Time . | . . . Total Robot Build Rating . | . . . Part Schematics Acquired . | . . . Parts Built . | . . . Authchips . | . . . Time . | . . . Total Part Build Rating . | . . . Parts Repaired 1 | . 1 . Time 26 | . 26 . Parts Recycled . | . . . Recycled Matter . | . . . Retrieved Matter . | . . . Retrieved Components . | . . . Parts Scanalyzed . | . . . Part Schematics Acquired . | . . . Parts Damaged . | . . . Bothacking | -11 -10 -10 ------------ Run | Yrd Mat Min Used RIF Installer . | . . . Robots Hacked . | . . . Non-combat . | . . . Combat . | . . . Robot Hacks Applied . | . . . Relay Couplers Released . | . . . Fabnet Peak Effective % . | . . . Robots Rewired . | . . . Allies Hacked . | . . . Hacks Repelled . | . . . Allies | -11 -10 -10 -------- Run | Yrd Mat Min Total Allies 4 | . 1 3 Largest Group 3 | . 1 3 Highest-Rated Group 40 | . 10 40 Highest-Rated Ally 16 | . 10 16 Total Orders . | . . . Ally Attacks . | . . . Total Damage . | . . . Kills . | . . . Allies Corrupted . | . . . Allies Melted . | . . . Intel | -11 -10 -10 ------- Run | Yrd Mat Min Robot Analysis Total 1 | . 1 . Derelict Logs Recovered 3 | . . 3 Drone Launches . | . . . Drone Recoveries . | . . . Exploration | -11 -10 -10 ------------- Run | Yrd Mat Min Turns Passed 2365 | 114 1586 665 Spaces Moved 1304 | 62 817 425 Core 4 | 4 . . Treads 995 | 58 817 120 Legs . | . . . Wheels 305 | . . 305 Hover . | . . . Flight . | . . . Fastest Speed 50 | 50 160 95 Average Speed 151 | 154 160 133 Slowest Speed 160 | 160 160 160 Overloaded Moves . | . . . Propulsion Burnouts . | . . . Robots Hopped . | . . . Cave-ins Triggered . | . . . Exploration Rate (%) 54 | 5 95 64 Regions Visited 2 Branch Regions 1 Pre-discovered Areas 3 | . . 3 Known Exits Taken 1 | . 1 . Unknown Exits Taken 1 | 1 . . Scrap Searched . | . . . Spaces Dug 37 | . 21 16 Terrain Destroyed 162 | . 21 141 Melee . | . . . Projectile 3 | . 3 . AOE 159 | . 18 141 Terrain Rammed . | . . . Walls Destroyed . | . . . Machines Disabled . | . . . Actions | -11 -10 -10 --------- Run | Yrd Mat Min Total 1574 | 76 1014 484 Wait 132 | 1 109 22 Move 1302 | 61 816 425 Hop . | . . . Pick Up 28 | 6 21 1 Fast Attach 8 | 4 3 1 Attach 9 | 3 . 6 Detach . | . . . Swap 10 | . 10 . Drop 13 | . 13 . Fire 64 | 1 39 24 Melee . | . . . Ram 1 | . . 1 Kick . | . . . Crush 7 | . 3 4 Escape Stasis . | . . . Rewire . | . . . Trap . | . . . Miscellaneous . | . . . Route ------- -11/Scrapyard -10/Materials (discovered 3 exits: [*Mat x2] / *Min) -10/Mines (discovered 2 exits: [*Mat x2]) History --------- Turn | Location | Event 5 | -11/Scrapyard | Discovered new exit (range 16) 115 | -11/Scrapyard | Entered Materials 226 | -10/Materials | Central database locked down 302 | -10/Materials | Build established: Mutant 349 | -10/Materials | Discovered new exit (range 4) 713 | -10/Materials | Identified exit to Mines 1034 | -10/Materials | Discovered new exit (range 5) 1601 | -10/Materials | Repaired Lgt. Treads 1701 | -10/Materials | Entered Mines 1750 | -10/Mines | Assisted by bots powering up and referring to "LRC-V3" 1767 | -10/Mines | Learned location of Zion (-7) 1799 | -10/Mines | Discovered new exit (range 15) 1891 | -10/Mines | Assembled infested the area 1924 | -10/Mines | Core integrity fell below 50% 1948 | -10/Mines | Lost 3 allies 1954 | -10/Mines | Lost 4 parts (2n2w) 2010 | -10/Mines | Learned location of Recycling (-8) 2215 | -10/Mines | Discovered new exit (range 7) 2247 | -10/Mines | Learned location of Storage (-8) 2353 | -10/Mines | Core integrity fell below 20% 2366 | -10/Mines | Destroyed self with Grenade Launcher Last Messages --------------- 02333_ Acquired 8 matter. 02339_ Acquired 3 matter. 02340_ Acquired 8 matter. 02340_ Acquired 12 matter. 02348_ Grenade Launcher destroyed. 02348_ Destroyed Grenade Launcher. 02350_ Lgt. Armor Plating destroyed. 02352_ as-07543 destroyed. 02353_ The unstable cave ceiling collapses. 02355_ Wheel destroyed. 02357_ as-63157 destroyed. 02357_ as-83770 destroyed. [Achievement: Let's See Who's Tougher] 02360_ Grenade Launcher destroyed. 02360_ Destroyed Grenade Launcher. 02360_ Destroyed Com. Wheel. 02360_ R-06 Scavenger destroyed. 02364_ Destroyed Asb. Hover Unit. 02365_ The unstable cave ceiling collapses. 02366_ as-36984 destroyed. Map ----- +----------------------------------------------------+ | ???????????????????????????# # #???????????# | | ???????????????????????????# # # ##??????????# | | ??????????????????????????## #??????????# | | ??????????????????????????# ## #??????????# | | ??????????????????????????## ##??????????# | | ???????????????????????????## #???######### | | ??????????????????????????### ### ###???# | | ????????????????????????### ######### ######## | | ???????????????????????##!% ### #??????? | | ???????????????????????# # ## ## ######??????? | | ???????????????????????#### # ## ###?????????? | | ????????????????????????# # # ##????????? | | ????????????????????????### *## #????????? | | ????????????????????????## ## #????????? | | ????????????????????????# = ### #????????? | | ???????????????????????## ### #????????? | | ??????????????????????## r[ ### ##???????? | | ?????????????????????## = ## ##?#####? | | ????????????????###?## ## ## ## | | ???????????????## ## *= ## # | | ???????????????# |%* ### # | | ???????????????# = ##?##### ## | | ?????#####?????## ##????## ##? | | ?????? #??????##### #?????#########?? | | ???????# #####??????##= ######???????????? | | ???????# #########%* @ ## ##??????????? | | ???????##### # # ## = ! ### ####???????? | | ???????????# # *%= % ## ##??????? | | ???????????# = ##?????? | | ???????????# ## ## ####??? | | ???????????# %!! [ #### ##?? | | ???????????#=* ! ==! ###??# #?? | | ???????????#== % %= | ##????# #?? | | ???????????## =*! =% ##????# #?? | | ????????????## =# ##!%= ! ##???## ### #?? | | ?????????????##! !! |*! #????####?# #?? | | ??????????????######=%=| % #?????????# #?? | | ???????????????????##!=* ##%! ##?????????# #?? | | ????????????????????#%########t=##??????????# #?? | | ????????????????????#!#####??#%!#???????????# ### | | ????????????????????# #??#* #?????????### | | ????????????????????##### #??# #??????#### ### | | ????????????????????????# #??# #??????# ##? | | ????????????????????????# #??# #??????# #? | | ????????????????????????# #### #??????# # | | ????????????????????????# #??????##### | | ????????????????????????###### ##?????????## | | ?????????????????????????????# ##?????????## # | | ?????????????????????????????# #??????????##### | | ?????????????????????????????# #??????????????? | +----------------------------------------------------+ Best States ------------- Heat Dissipation 25 Energy Generation 10 Energy Capacity 250 Matter Stores 300 Matter Capacity 300 Sight Range 16 Robot Scan Range 14 Terrain Scan Density 10 Armor Coverage 150 Evasion (%) 41 Recoil Reduction 2 Item Schematics ----------------- None Robot Schematics ------------------ None Fabricated ------------ Nothing Alien Tech Used ----------------- None Achievements -------------- Let's See Who's Tougher Challenges ------------ None Game ------ Seed WeldingPortableCarapace Manual? 0 Play Time 00:32:51 Cumulative 19.9 hours Start 2024.04.10 @ 17:25:56 End 2024.04.10 @ 18:10:20 Sessions 1 Manual Loads 0 Difficulty Rogue Special Mode None Game No. 14 Rogue 14 Adventurer 0 Explorer 0 Win Type - Total 0 Types 0/0/0/0/0/0/0/0/0 Lore% 18 Gallery% 18 Achievement% 17 Wizard Run 0 Options --------- Layout 0 ASCII 0 Keyboard 0 Movement Numpad Keybinds 0 Fullscreen 1 Font 18/SmallcapsGlow Map View 76x50 Zoom Use 0% Tactical HUD 1 Map Filters NONE Filters NONE Steam 1 RUN: d4353382-9886-4ecd-9551-e72afbd8eb38